Workbook

Sheet Leere Vorlage
A2: Nährwertberechnung | D2: Bitte nur die grau/grün unterlegten Felder ausfüllen | J2: Produktname
A4: Zutaten | B4: Menge im Rezept in g/ml | C4: Energie | G4: Fett | I4: Kohlenhydrate hydrate | K4: Eiweiss/Protein | M4: Salz
C5: kJ/100 g | D5: im Produkt | E5: kcal/100 g | F5: im Produkt | G5: g/100 g | H5: im Produkt | I5: g/100 g | J5: im Produkt | K5: g/100 g | L5: im Produkt | M5: g/100 g | N5: im Produkt
D6: =(B6*C6)/100 -> 0 | F6: =(B6*E6)/100 -> 0 | H6: =(B6*G6)/100 -> 0 | J6: =(B6*I6)/100 -> 0 | L6: =(B6*K6)/100 -> 0 | N6: =(B6*M6)/100 -> 0
D7: =(B7*C7)/100 -> 0 | F7: =(B7*E7)/100 -> 0 | H7: =(B7*G7)/100 -> 0 | J7: =(B7*I7)/100 -> 0 | L7: =(B7*K7)/100 -> 0 | N7: =(B7*M7)/100 -> 0
D8: 0 | F8: 0 | H8: 0 | J8: 0 | L8: 0 | N8: 0
D9: 0 | F9: 0 | H9: 0 | J9: 0 | L9: 0 | N9: 0
D10: 0 | F10: 0 | H10: 0 | J10: 0 | L10: 0 | N10: 0
D11: 0 | F11: 0 | H11: 0 | J11: 0 | L11: 0 | N11: 0
D12: 0 | F12: 0 | H12: 0 | J12: 0 | L12: 0 | N12: 0
D13: 0 | F13: 0 | H13: 0 | J13: 0 | L13: 0 | N13: 0
D14: 0 | F14: 0 | H14: 0 | J14: 0 | L14: 0 | N14: 0
D15: 0 | F15: 0 | H15: 0 | J15: 0 | L15: 0 | N15: 0
D16: 0 | F16: 0 | H16: 0 | J16: 0 | L16: 0 | N16: 0
D17: 0 | F17: 0 | H17: =(B17*G17)/100 -> 0 | J17: 0 | L17: 0 | N17: 0
D18: 0 | F18: 0 | H18: 0 | J18: 0 | L18: 0 | N18: 0
D19: 0 | F19: 0 | H19: 0 | J19: 0 | L19: 0 | N19: 0
D20: 0 | F20: 0 | H20: 0 | J20: 0 | L20: 0 | N20: 0
D21: =(B21*C21)/100 -> 0 | F21: 0 | H21: 0 | J21: 0 | L21: 0 | N21: 0
A22: Gesamtmenge nach der Zubereitung | D22: =SUM(D6:D21) -> 0 | F22: =SUM(F6:F21) -> 0 | H22: =SUM(H6:H21) -> 0 | J22: =SUM(J6:J21) -> 0 | L22: =SUM(L6:L21) -> 0 | N22: =SUM(N6:N21) -> 0
A25: Menge pro 100 g | D25: =(D22*100)/$B$22 ->  | F25: =(F22*100)/$B$22 ->  | H25: =(H22*100)/$B$22 -> 
A34: © BFS Fachgruppe Direktvermarktung 2020 (Layout)

Sheet Bauernbrot
A2: Nährwertberechnung | J2: Bauernbrot
A4: Zutaten | B4: Menge im Rezept in g/ml | C4: Energie | G4: Fett | I4: Kohlenhydrate hydrate | K4: Eiweiss/Protein | M4: Salz
C5: kJ/100 g | D5: im Produkt | E5: kcal/100 g | F5: im Produkt | G5: g/100 g | H5: im Produkt | I5: g/100 g | J5: im Produkt | K5: g/100 g | L5: im Produkt | M5: g/100 g | N5: im Produkt
A6: Weizenmehl, weiss | B6: 3000 | C6: 1470 | D6: =(B6*C6)/100 -> 44100 | E6: 346 | F6: =(B6*E6)/100 -> 10380 | G6: 1.1 | H6: =(B6*G6)/100 -> 33 | I6: 71 | J6: =(B6*I6)/100 -> 2130 | K6: 11.5 | L6: =(B6*K6)/100 -> 345 | M6: 0 | N6: =(B6*M6)/100 -> 0
A7: Dinkelmehl, weiss | B7: 1000 | C7: 1480 | D7: =(B7*C7)/100 -> 14800 | E7: 348 | F7: =(B7*E7)/100 -> 3480 | G7: 1.5 | H7: =(B7*G7)/100 -> 15 | I7: 69 | J7: =(B7*I7)/100 -> 690 | K7: 13.3 | L7: =(B7*K7)/100 -> 133 | M7: 0.0068 | N7: =(B7*M7)/100 -> 0.068
A8: Roggenmehl, Ruch | B8: 1000 | C8: 1420 | D8: 14200 | E8: 336 | F8: 3360 | G8: 1.3 | H8: 13 | I8: 67.8 | J8: =(B8*I8)/100 -> 678 | K8: 9 | L8: 90 | M8: 0.036 | N8: 0.36
A9: Vollmilch, pasteurisiert | B9: 2500 | C9: 284 | D9: 7100 | E9: 68 | F9: 1700 | G9: 4 | H9: 100 | I9: 4.7 | J9: 117.5 | K9: 3.2 | L9: 80 | M9: 0.135 | N9: 3.375
A10: Kochsalz mit Jod & Fluor | B10: 100 | C10: 0 | D10: 0 | E10: 0 | F10: 0 | G10: 0 | H10: 0 | I10: 0 | J10: 0 | K10: 0 | L10: 0 | M10: 99 | N10: 99
A11: Frischhefe | B11: 100 | C11: 353 | D11: 353 | E11: 83 | F11: 83 | G11: 1 | H11: 1 | I11: 1 | J11: 1 | K11: 17 | L11: 17 | M11: 0 | N11: 0
D12: 0 | F12: 0 | H12: 0 | J12: 0 | L12: 0 | N12: 0
D13: 0 | F13: 0 | H13: 0 | J13: 0 | L13: 0 | N13: 0
D14: 0 | F14: 0 | H14: 0 | J14: 0 | L14: 0 | N14: 0
D15: 0 | F15: 0 | H15: 0 | J15: 0 | L15: 0 | N15: 0
D16: 0 | F16: 0 | H16: 0 | J16: 0 | L16: 0 | N16: 0
D17: 0 | F17: 0 | H17: 0 | J17: 0 | L17: 0 | N17: 0
D18: 0 | F18: 0 | H18: 0 | J18: 0 | L18: 0 | N18: 0
A19: Gesamtmenge nach der Zubereitung | B19: 6470 | D19: =SUM(D6:D18) -> 80553 | F19: =SUM(F6:F18) -> 19003 | H19: =SUM(H6:H18) -> 162 | J19: =SUM(J6:J18) -> 3616.5 | L19: =SUM(L6:L18) -> 665 | N19: 102.803
A22: Menge pro 100 g | D22: =(D19*100)/$B$19 -> 1245.023184 | F22: =(F19*100)/$B$19 -> 293.7094281 | H22: =(H19*100)/$B$19 -> 2.503863988 | J22: 55.89644513 | L22: 10.27820711 | N22: 1.588918083
A33: © BFS Fachgruppe Direktvermarktung 2020 | I33: Quelle Nährwertdaten: www.naehrwertdaten.ch
A34: Eva Flückiger, Paula Furrer-Amrein, Andrea Heimberg Müller, Manuela Isenschmid | I34: Bundesamt für Lebensmittelsicherheit und Veterinärwesen BLV

Sheet Butterzopf
A2: Nährwertberechnung | J2: Butterzopf
A4: Zutaten | B4: Menge im Rezept in g/ml | C4: Energie | G4: Fett | I4: Kohlenhydrate hydrate | K4: Eiweiss/Protein | M4: Salz
C5: kJ/100 g | D5: im Produkt | E5: kcal/100 g | F5: im Produkt | G5: g/100 g | H5: im Produkt | I5: g/100 g | J5: im Produkt | K5: g/100 g | L5: im Produkt | M5: g/100 g | N5: im Produkt
A6: Weizenmehl weiss | B6: 4500 | C6: 1470 | D6: =(B6*C6)/100 -> 66150 | E6: 346 | F6: =(B6*E6)/100 -> 15570 | G6: 1.1 | H6: =(B6*G6)/100 -> 49.5 | I6: 71 | J6: =(B6*I6)/100 -> 3195 | K6: 11.5 | L6: =(B6*K6)/100 -> 517.5 | M6: 0 | N6: =(B6*M6)/100 -> 0
A7: Dinkelmehl weiss | B7: 500 | C7: 1480 | D7: =(B7*C7)/100 -> 7400 | E7: 348 | F7: =(B7*E7)/100 -> 1740 | G7: 1.5 | H7: =(B7*G7)/100 -> 7.5 | I7: 69 | J7: =(B7*I7)/100 -> 345 | K7: 13.3 | L7: =(B7*K7)/100 -> 66.5 | M7: 0.0068 | N7: =(B7*M7)/100 -> 0.034
A8: Kochbutter | B8: 500 | C8: 3060 | D8: 15300 | E8: 745 | F8: 3725 | G8: 82.2 | H8: 411 | I8: 0.7 | J8: =(B8*I8)/100 -> 3.5 | K8: 0.5 | L8: 2.5 | M8: 0.022 | N8: 0.11
A9: Vollmilch, pasteurisiert | B9: 3000 | C9: 282 | D9: 8460 | E9: 68 | F9: 2040 | G9: 4 | H9: 120 | I9: 4.7 | J9: 141 | K9: 3.2 | L9: 96 | M9: 0.135 | N9: 4.05
A10: Kochsalz mit Jod & Fluor | B10: 100 | C10: 0 | D10: 0 | E10: 0 | F10: 0 | G10: 0 | H10: 0 | I10: 0 | J10: 0 | K10: 0 | L10: 0 | M10: 100 | N10: 100
A11: Frischhefe | B11: 100 | C11: 353 | D11: 353 | E11: 83 | F11: 83 | G11: 1 | H11: 1 | I11: 1 | J11: 1 | K11: 17 | L11: 17 | M11: 0 | N11: 0
A12: Hühnerei, ganz, roh | B12: 90 | C12: 589 | D12: 530.1 | E12: 142 | F12: 127.8 | G12: 10.3 | H12: 9.27 | I12: 0.3 | J12: 0.27 | K12: 11.9 | L12: 10.71 | M12: 0.4 | N12: 0.36
D13: 0 | F13: 0 | H13: 0 | J13: 0 | L13: 0 | N13: 0
D14: 0 | F14: 0 | H14: 0 | J14: 0 | L14: 0 | N14: 0
D15: 0 | F15: 0 | H15: 0 | J15: 0 | L15: 0 | N15: 0
D16: 0 | F16: 0 | H16: 0 | J16: 0 | L16: 0 | N16: 0
D17: 0 | F17: 0 | H17: 0 | J17: 0 | L17: 0 | N17: 0
D18: 0 | F18: 0 | H18: 0 | J18: 0 | L18: 0 | N18: 0
A19: Gesamtmenge nach der Zubereitung | B19: 7660 | D19: =SUM(D6:D18) -> 98193.1 | F19: =SUM(F6:F18) -> 23285.8 | H19: =SUM(H6:H18) -> 598.27 | J19: =SUM(J6:J18) -> 3685.77 | L19: =SUM(L6:L18) -> 710.21 | N19: 104.554
A22: Menge pro 100 g | D22: =(D19*100)/$B$19 -> 1281.894256 | F22: =(F19*100)/$B$19 -> 303.9921671 | H22: =(H19*100)/$B$19 -> 7.810313316 | J22: 48.11710183 | L22: 9.271671018 | N22: 1.364934726
A33: © BFS Fachgruppe Direktvermarktung 2020 | I33: Quelle Nährwertdaten: www.naehrwertdaten.ch
A34: Eva Flückiger, Paula Furrer-Amrein, Andrea Heimberg Müller, Manuela Isenschmid | I34: Bundesamt für Lebensmittelsicherheit und Veterinärwesen BLV

Sheet Schokoladeguetzli
A2: Nährwertberechnung | J2: Schokoladeguetzli
A4: Zutaten | B4: Menge im Rezept in g/ml | C4: Energie | G4: Fett | I4: Kohlenhydrate hydrate | K4: Eiweiss/Protein | M4: Salz
C5: kJ/100 g | D5: im Produkt | E5: kcal/100 g | F5: im Produkt | G5: g/100 g | H5: im Produkt | I5: g/100 g | J5: im Produkt | K5: g/100 g | L5: im Produkt | M5: g/100 g | N5: im Produkt
A6: Kochbutter | B6: 270 | C6: 3060 | D6: =(B6*C6)/100 -> 8262 | E6: 745 | F6: =(B6*E6)/100 -> 2011.5 | G6: 82.2 | H6: =(B6*G6)/100 -> 221.94 | I6: 0.7 | J6: =(B6*I6)/100 -> 1.89 | K6: 0.5 | L6: =(B6*K6)/100 -> 1.35 | M6: 0 | N6: =(B6*M6)/100 -> 0
A7: Zucker, weiss | B7: 220 | C7: 1700 | D7: 3740 | E7: 400 | F7: 880 | G7: 0 | H7: 0 | I7: 100 | J7: 220 | K7: 0 | L7: 0 | M7: 0.0015 | N7: 0.0033
A8: Hühnerei, ganz, roh | B8: 160 | C8: 589 | D8: 942.4 | E8: 142 | F8: 227.2 | G8: 10.3 | H8: 16.48 | I8: 0.3 | J8: 0.48 | K8: 11.9 | L8: 19.04 | M8: 0.4 | N8: 0.64
A9: Schokolade dunkel (bitter) | B9: 150 | C9: 2240 | D9: 3360 | E9: 537 | F9: 805.5 | G9: 31.8 | H9: 47.7 | I9: 53.4 | J9: 80.1 | K9: 5.2 | L9: 7.8 | M9: 0.015 | N9: 0.0225
A10: Weizenmehl, halbweiss | B10: 450 | C10: 1440 | D10: 6480 | E10: 340 | F10: 1530 | G10: 1.5 | H10: 6.75 | I10: 66.2 | J10: 297.9 | K10: 13 | L10: 58.5 | M10: 0 | N10: 0
D11: 0 | F11: 0 | H11: 0 | J11: 0 | L11: 0 | N11: =(B11*M11)/100 -> 0
D12: 0 | F12: 0 | H12: 0 | J12: 0 | L12: 0 | N12: =(B12*M12)/100 -> 0
D13: 0 | F13: 0 | H13: 0 | J13: 0 | L13: 0 | N13: 0
D14: 0 | F14: 0 | H14: 0 | J14: 0 | L14: 0 | N14: 0
D15: 0 | F15: 0 | H15: 0 | J15: 0 | L15: 0 | N15: 0
D16: 0 | F16: 0 | H16: 0 | J16: 0 | L16: 0 | N16: 0
D17: 0 | F17: 0 | H17: 0 | J17: 0 | L17: 0 | N17: 0
D18: 0 | F18: 0 | H18: 0 | J18: 0 | L18: 0 | N18: 0
A19: Gesamtmenge nach der Zubereitung | B19: 1060 | D19: =SUM(D6:D18) -> 22784.4 | F19: =SUM(F6:F18) -> 5454.2 | H19: =SUM(H6:H18) -> 292.87 | J19: =SUM(J6:J18) -> 600.37 | L19: =SUM(L6:L18) -> 86.69 | N19: =SUM(N6:N18) -> 0.6658
A22: Menge pro 100 g | D22: =(D19*100)/$B$19 -> 2149.471698 | F22: =(F19*100)/$B$19 -> 514.5471698 | H22: =(H19*100)/$B$19 -> 27.62924528 | J22: 56.63867925 | L22: 8.178301887 | N22: 0.06281132075
A34: © BFS Fachgruppe Direktvermarktung 2020 | I34: Quelle Nährwertdaten: www.naehrwertdaten.ch
A35: Eva Flückiger, Paula Furrer-Amrein, Andrea Heimberg Müller, Manuela Isenschmid | I35: Bundesamt für Lebensmittelsicherheit und Veterinärwesen BLV

Sheet Himbeerkonfitüre
A2: Nährwertberechnung | J2: Himbeerkonfitüre
A4: Zutaten | B4: Menge im Rezept in g/ml | C4: Energie | G4: Fett | I4: Kohlenhydrate hydrate | K4: Eiweiss/Protein | M4: Salz
C5: kJ/100 g | D5: im Produkt | E5: kcal/100 g | F5: im Produkt | G5: g/100 g | H5: im Produkt | I5: g/100 g | J5: im Produkt | K5: g/100 g | L5: im Produkt | M5: g/100 g | N5: im Produkt
A6: Himbeeren* | B6: 1000 | C6: 186 | D6: =(B6*C6)/100 -> 1860 | E6: 44 | F6: =(B6*E6)/100 -> 440 | G6: 0.5 | H6: =(B6*G6)/100 -> 5 | I6: 7.6 | J6: =(B6*I6)/100 -> 76 | K6: 0.8 | L6: =(B6*K6)/100 -> 8 | M6: 0.025 | N6: =(B6*M6)/100 -> 0.25
A7: Zucker, weiss | B7: 900 | C7: 1700 | D7: =(B7*C7)/100 -> 15300 | E7: 400 | F7: =(B7*E7)/100 -> 3600 | G7: 0 | H7: =(B7*G7)/100 -> 0 | I7: 100 | J7: =(B7*I7)/100 -> 900 | K7: 0 | L7: =(B7*K7)/100 -> 0 | M7: 0.0015 | N7: =(B7*M7)/100 -> 0.0135
A8: Zitronensaft | B8: 20 | C8: 125 | D8: 25 | E8: 30 | F8: 6 | G8: 0.3 | H8: 0.06 | I8: 6.1 | J8: 1.22 | K8: 0.4 | L8: 0.08 | M8: 0.1 | N8: 0.02
D9: 0 | F9: 0 | H9: 0 | J9: 0 | L9: 0 | N9: 0
D10: 0 | F10: 0 | H10: 0 | J10: 0 | L10: 0 | N10: 0
D11: 0 | F11: 0 | H11: 0 | J11: 0 | L11: 0 | N11: 0
D12: 0 | F12: 0 | H12: 0 | J12: 0 | L12: 0 | N12: 0
D13: 0 | F13: 0 | H13: 0 | J13: 0 | L13: 0 | N13: 0
D14: 0 | F14: 0 | H14: 0 | J14: 0 | L14: 0 | N14: 0
D15: 0 | F15: 0 | H15: 0 | J15: 0 | L15: 0 | N15: 0
D16: 0 | F16: 0 | H16: 0 | J16: 0 | L16: 0 | N16: 0
D17: 0 | F17: 0 | H17: 0 | J17: 0 | L17: 0 | N17: 0
D18: 0 | F18: 0 | H18: 0 | J18: 0 | L18: 0 | N18: 0
A19: Gesamtmenge nach der Zubereitung | B19: 1800 | D19: =SUM(D6:D18) -> 17185 | F19: =SUM(F6:F18) -> 4046 | H19: =SUM(H6:H18) -> 5.06 | J19: =SUM(J6:J18) -> 977.22 | L19: =SUM(L6:L18) -> 8.08 | N19: 0.2835
A22: Menge pro 100 g | D22: =(D19*100)/$B$19 -> 954.7222222 | F22: =(F19*100)/$B$19 -> 224.7777778 | H22: =(H19*100)/$B$19 -> 0.2811111111 | J22: 54.29 | L22: 0.4488888889 | N22: 0.01575
A25: * Werte übernommen von Beeren (Durchschnitt), gekocht (ohne Zugabe von Zucker)
A34: © BFS Fachgruppe Direktvermarktung 2020 | I34: Quelle Nährwertdaten: www.naehrwertdaten.ch
A35: Eva Flückiger, Paula Furrer-Amrein, Andrea Heimberg Müller, Manuela Isenschmid | I35: Bundesamt für Lebensmittelsicherheit und Veterinärwesen BLV

Sheet Tabelle1
